Cogmind - Beta 16 @@@ ROGUE MODE // 2026.01.02 @ 09:25:59 Player: Yellow Fin Result: Destroyed by D-53 Grenadier with Mini Grenade Launcher Performance ------------- Evolutions (0) 0 Regions Visited (2) 400 Robots Destroyed (27) 135 Value Destroyed (313) 313 Prototype IDs (0) 0 Alien Tech Used (0) 0 Bonus (0) 0 TOTAL SCORE: 848 Bonus ------- None Cogmind --------- Core Integrity 0/250 Matter 295/300 Energy 97/100 System Corruption 0% Temperature Cool (0) Movement Core (50) Location -10/Mines Parts ------- > --- POWER (1) -------- (None) > --- PROPULSION (2) --- (None) > --- UTILITY (2) ------ Transport Network Coupler Targeting Computer > --- WEAPON (2) ------- (None) > --- INVENTORY (5) ---- Structural Scanner Improved Terrain Scanner Terrain Scan Processor Light Cannon Hammer Peak State ------------ > --- POWER ------------ (None) > --- PROPULSION ------- (None) > --- UTILITY ---------- Targeting Computer Targeting Computer > --- WEAPON ----------- Small Laser Assault Rifle > --- INVENTORY -------- Improved Terrain Scanner Light Assault Rifle Light Assault Rifle Mining Laser Hammer [Rating: 4] Favorites ----------- Power None Propulsion None Utility Targeting Computer Device Seismic Detector Processor Targeting Computer Weapon Small Laser Energy Gun Small Laser Ballistic Gun Light Assault Rifle Ballistic Cannon Light Cannon Launcher Grenade Launcher Build | -11 -10 -10 ------- Run | Yrd Mat Min Slots Evolved . | . . . Power . | . . . Propulsion . | . . . Utility . | . . . Weapon . | . . . Parts Attached 11 | 3 7 1 Power . | . . . Engine . | . . . Core . | . . . Reactor . | . . . Propulsion . | . . . Treads . | . . . Leg . | . . . Wheel . | . . . Hover . | . . . Flight . | . . . Utility 4 | 1 3 . Device 1 | 1 . . Storage . | . . . Processor 3 | . 3 . Hackware . | . . . Protection . | . . . Artifact . | . . . Weapon 7 | 2 4 1 Energy Gun 1 | 1 . . Energy Cannon . | . . . Ballistic Gun 4 | 1 3 . Ballistic Cannon 1 | . 1 . Launcher 1 | . . 1 Special Weapon . | . . . Impact Weapon . | . . . Slashing Weapon . | . . . Piercing Weapon . | . . . Special Melee Weapon . | . . . Unidentified Prototypes . | . . . Parts Lost 1 | . . 1 Power . | . . . Propulsion . | . . . Utility . | . . . Weapon 1 | . . 1 Highest Loss Streak 1 | . . 1 To Critical Strikes . | . . . Average Backups 4 | 1 4 5 Power . | . . . Propulsion . | . . . Utility 2 | . 2 3 Weapon 2 | . 2 2 Tool/Special . | . . . Unused Backups 9 | 1 4 4 Power . | . . . Propulsion . | . . . Utility 7 | 1 3 3 Weapon 2 | . 1 1 Tool/Special . | . . . Average Slot Usage (%) 53 | . 53 54 Processor 25 | . 24 28 Energy Gun 9 | . 11 . Ballistic Gun 13 | . 14 11 Ballistic Cannon 4 | . 2 12 Peak Build Rating 4 | 3 4 4 Average Rating 3 | 2 3 3 On Entrance 2 | . 3 4 Avg Prop Armor Cover (%) . | . . . Naked Turns . | . . . Heaviest Build 4 | 3 4 4 Greatest Support 3 | 3 3 3 Greatest Overweight (x) 1 | . 1 1 Average Overweight (x) . | . . . Largest Inventory Capacity 5 | 5 5 5 Average Capacity 5 | 5 5 5 Most Carried 5 | 3 5 5 Average Carried 4 | 1 4 5 Final Capacity 5 | 5 5 5 Final Carried 5 | 3 5 5 Class Distribution -------------------- 100% | Mutant Dominant Class ---------------- Mutant | -10/Materials Mutant | -10/Mines Resources | -11 -10 -10 ----------- Run | Yrd Mat Min Matter Collected 466 | 254 212 . Remotely . | . . . Salvage Created 865 | 213 652 . Parts 56 | 16 40 . Haulers Intercepted 2 | . 2 . Recyclers Shooed 2 | . 2 . Parts Field Recycled . | . . . Retrieved Matter . | . . . Parts Self-Destructed . | . . . Prevented . | . . . Parts Restored . | . . . Kills | -11 -10 -10 ------- Run | Yrd Mat Min Combat Hostiles Destroyed 7 | . 7 . Guns 7 | . 7 . Classes Destroyed 8 | 3 5 . Worker 2 | 2 . . Builder 6 | . 6 . Tunneler 5 | 5 . . Hauler 2 | . 2 . Recycler 3 | 1 2 . Watcher 2 | . 2 . Swarmer 3 | . 3 . Grunt 4 | . 4 . Best Kill Streak 9 | 4 9 . Combat Bots Only 5 | . 5 . Max Kills in Single Turn 1 | 1 1 . Gunslinging . | . . . Exploded . | . . . Melee . | . . . Uniques/NPCs Destroyed . | . . . Combat | -11 -10 -10 -------- Run | Yrd Mat Min Hostile Shots Fired 41 | . 34 7 Missed 9 | . 9 . Hits 32 | . 25 7 Projectile 32 | . 25 7 AOE 7 | . . 7 Critical Strikes 1 | . 1 . Damage Taken 621 | . 327 294 Core 297 | . 157 140 Absorbed by Shields . | . . . Core Remaining (%) 100 | 100 . . Volleys Fired 74 | 24 50 . Largest 2 | 2 2 . Hottest 60 | 60 60 . Shots Fired 146 | 48 98 . Gun 141 | 48 93 . Cannon 5 | . 5 . Launcher . | . . . Special . | . . . Kinetic 79 | 24 55 . Thermal 67 | 24 43 . Explosive . | . . . Electromagnetic . | . . . Robot Hit Streak 28 | 13 28 . Robot Miss Streak 6 | 4 6 . Penetration Max . | . . . Secondary Targets 1 | . 1 . Max Gunslinging Chain 1 | . 1 . Shots Hit Robots 102 | 30 72 . Core Hits 43 | 11 32 . Critical Kills . | . . . Critical Parts Destroyed . | . . . Critical Strikes . | . . . Melee Attacks . | . . . Impact . | . . . Slashing . | . . . Piercing . | . . . Sneak Attacks . | . . . Combat Hostiles . | . . . Follow-up Attacks . | . . . Damage Inflicted 1070 | 292 778 . Guns 1034 | 292 742 . Cannons 36 | . 36 . Explosions . | . . . Melee . | . . . Ramming . | . . . Kinetic 464 | 92 372 . Thermal 606 | 200 406 . Explosive . | . . . Electromagnetic . | . . . Impact . | . . . Slashing . | . . . Piercing . | . . . Highest Corruption . | . . . Average Corruption . | . . . Corruption Purged . | . . . Corruption Blocked . | . . . Overload Shots . | . . . Overflow Damage 6 | . 6 . Projectiles 6 | . 6 . Explosions . | . . . Melee . | . . . Knockbacks . | . . . Impact . | . . . Kinetic . | . . . Secondary . | . . . Self-Inflicted Damage . | . . . Shots . | . . . Rammed . | . . . Targets Rammed . | . . . Kicked . | . . . Crushed . | . . . Highest Temperature 31 | 20 31 . Average Temperature 9 | 8 10 . Received Heat Transfer 192 | . 192 . Siege Activations . | . . . Martial Activations . | . . . Shielding Activations . | . . . Robots Disrupted . | . . . Combat Hostiles . | . . . Robots Corrupted . | . . . Combat Hostiles . | . . . Parts Fried . | . . . Impact Corruptions . | . . . Robots Melted . | . . . Combat Hostiles . | . . . Parts Melted 1 | . 1 . Heat Transferred 1375 | 450 925 . Parts Sabotaged . | . . . Parts Stolen . | . . . Parts Stripped . | . . . Power Chain Reactions . | . . . Alert | -11 -10 -10 ------- Run | Yrd Mat Min Maximum Alert Level . | . . . Low Security (%) 100 | 100 100 100 Level 1 . | . . . Level 2 . | . . . Level 3 . | . . . Level 4 . | . . . Level 5 . | . . . High Security . | . . . Max Security . | . . . Peak Influence 127 | 10 127 33 Initial 33 | . . 33 Average 35 | 2 48 16 Influence Increases 308 | 40 268 . Destroy 0b10 Robot/C 140 | . 140 . Destroy 0b10 Robot/NC 100 | 40 60 . Destroy Leader 38 | . 38 . Lose Combat Pursuer 30 | . 30 . Influence Decreases 308 | 40 181 87 Entered New Map 54 | . . 54 Time Decay 254 | 40 181 33 Squads Dispatched . | . . . Investigation . | . . . Extermination . | . . . Reinforcement . | . . . Assault . | . . . Garrison . | . . . Intercept . | . . . Searches Triggered . | . . . Construction Impeded . | . . . Haulers Reinforced . | . . . Active Scanning Responses . | . . . Cargo Convoy Interrupts . | . . . Stealth | -11 -10 -10 --------- Run | Yrd Mat Min Distress Signals 1 | . 1 . Communications Jammed . | . . . Distress Signals . | . . . Times Spotted 19 | . 16 3 Peak Tracking Total 4 | . 4 2 Tactical Retreats 1 | . 1 . Traps | -11 -10 -10 ------- Run | Yrd Mat Min Traps Triggered . | . . . Indirectly . | . . . Trap Hack Attempts . | . . . Triggered . | . . . Disarmed . | . . . Reprogrammed . | . . . Reused . | . . . Traps Extracted . | . . . Installed . | . . . Triggered . | . . . Machines | -11 -10 -10 ---------- Run | Yrd Mat Min Machines Disabled . | . . . Max in Single Turn . | . . . Machines Repaired . | . . . Machines Dismantled . | . . . Machines Sabotaged . | . . . Overloaded Fab Kills . | . . . Hacking | -11 -10 -10 --------- Run | Yrd Mat Min Machines Accessed . | . . . Terminals . | . . . Fabricators . | . . . Repair Stations . | . . . Recycling Units . | . . . Scanalyzers . | . . . Garrison Access . | . . . Total Hacks . | . . . Successful . | . . . Failed . | . . . Catastrophic . | . . . Database Lockouts . | . . . Manual . | . . . Terminals . | . . . Fabricators . | . . . Repair Stations . | . . . Recycling Units . | . . . Scanalyzers . | . . . Garrison Access . | . . . Terminal Hacks . | . . . Fabricator Hacks . | . . . Repair Station Hacks . | . . . Recycling Unit Hacks . | . . . Scanalyzer . | . . . Garrison Access Hacks . | . . . Unauthorized Hacks . | . . . Terminals . | . . . Fabricators . | . . . Repair Stations . | . . . Recycling Units . | . . . Scanalyzers . | . . . Garrison Access . | . . . Data Cores Recovered . | . . . Used . | . . . Hacking Detections . | . . . Full Trace Events . | . . . Feedback Events . | . . . Feedback Blocked . | . . . Robot Schematics Acquired . | . . . Robots Built . | . . . Authchips . | . . . Time . | . . . Total Robot Build Rating . | . . . Part Schematics Acquired . | . . . Parts Built . | . . . Authchips . | . . . Time . | . . . Total Part Build Rating . | . . . Part Studies Acquired . | . . . Parts Repaired . | . . . Time . | . . . Parts Recycled . | . . . Recycled Matter . | . . . Retrieved Matter . | . . . Retrieved Components . | . . . Parts Scanalyzed . | . . . Part Schematics Acquired . | . . . Parts Damaged . | . . . Bothacking | -11 -10 -10 ------------ Run | Yrd Mat Min Used RIF Installer . | . . . Robots Hacked . | . . . Non-combat . | . . . Combat . | . . . Robot Hacks Applied . | . . . Relay Couplers Released . | . . . Fabnet Peak Effective % . | . . . Robots Rewired . | . . . Allies Hacked . | . . . Hacks Repelled . | . . . Allies | -11 -10 -10 -------- Run | Yrd Mat Min Total Allies 3 | . . 3 Largest Group 3 | . . 3 Highest-Rated Group 40 | . . 40 Highest-Rated Ally 16 | . . 16 Total Orders . | . . . Ally Attacks 3 | . . 3 Total Damage 14 | . . 14 Kills . | . . . Allies Corrupted . | . . . Allies Melted . | . . . Intel | -11 -10 -10 ------- Run | Yrd Mat Min Active Infowar (turns) 244 | 45 113 86 Seismic 52 | 45 7 . T.N.C. 192 | . 106 86 Robot Analysis Total . | . . . Derelict Logs Recovered 1 | . . 1 Drone Launches . | . . . Drone Recoveries . | . . . Exploration | -11 -10 -10 ------------- Run | Yrd Mat Min Turns Passed 661 | 121 454 86 Spaces Moved 585 | 78 413 94 Core 585 | 78 413 94 Treads . | . . . Legs . | . . . Wheels . | . . . Hover . | . . . Flight . | . . . Fastest Speed 50 | 50 50 50 Average Speed 60 | 50 56 86 Slowest Speed 100 | 50 100 100 Overloaded Moves . | . . . Propulsion Burnouts . | . . . Robots Hopped . | . . . Potential Cave-ins . | . . . Cave-ins Triggered . | . . . Exploration Rate (%) 32 | 3 70 25 Regions Visited 2 Branch Regions 1 Pre-discovered Areas 1 | . . 1 Known Exits Taken . | . . . Unknown Exits Taken 2 | 1 1 . Scrap Searched 1 | . . 1 Spaces Dug . | . . . Terrain Destroyed . | . . . Melee . | . . . Projectile . | . . . AOE . | . . . Terrain Rammed . | . . . Walls Destroyed . | . . . Machines Disabled . | . . . Actions | -11 -10 -10 --------- Run | Yrd Mat Min Total 756 | 115 542 99 Wait 61 | 6 52 3 Move 583 | 77 412 94 Hop . | . . . Pick Up 12 | 4 8 . Fast Attach 6 | 3 3 . Attach 2 | . 2 . Detach 1 | . 1 . Swap 5 | . 4 1 Drop 12 | 1 10 1 Fire 74 | 24 50 . Melee . | . . . Ram . | . . . Kick . | . . . Crush . | . . . Escape Stasis . | . . . Rewire . | . . . Trap . | . . . Miscellaneous . | . . . Route ------- -11/Scrapyard -10/Materials (discovered 2 exits: [*Mat] / [*Min]) -10/Mines History --------- Turn | Location | Event 5 | -11/Scrapyard | Discovered new exit (range 16) 122 | -11/Scrapyard | Entered Materials 183 | -10/Materials | Discovered new exit (range 16) 304 | -10/Materials | Build established: Mutant 380 | -10/Materials | Discovered new exit (range 16) 440 | -10/Materials | Core integrity fell below 50% 576 | -10/Materials | Entered Mines 604 | -10/Mines | Learned location of Zion (-7) 612 | -10/Mines | Assembled infested the area 649 | -10/Mines | Core integrity fell below 20% 653 | -10/Mines | Assisted by bots powering up and referring to "LRC-V3" 662 | -10/Mines | Destroyed by D-53 Grenadier with Mini Grenade Launcher Last Messages --------------- 00595_ Found Transport Network Coupler. 00595_ Found 39 Matter. 00604_ Acquired derelict log, extracted data. World map updated: -7/Zion. 00612_ ALERT: Infestation in the mines, dispatching Demolisher response squad. 00644_ C-45 Heavy ARC bursts open, deploying its payload. 00644_ D-53 Grenadier unfolds itself. 00644_ Dropped Lgt. Assault Rifle. 00653_ Trooper 1a: "Hello LRC-V3. What is your command?" 00653_ Mercenary 1a: "Hello LRC-V3. What is your command?" 00653_ Trooper 1b: "Hello LRC-V3. What is your command?" 00660_ Trooper 1b destroyed. 00660_ Mercenary 1a destroyed. 00660_ Grenade Launcher destroyed. 00660_ Trooper 1a destroyed. Map ----- +----------------------------------------------------+ | | | | | | | | | | | | | | | | | | | | | | | | | | | | | | | | | | | | | ????????????????????# # ##????????? | | ????????????????????# [% #????????? | | ?????????#######????##!%= #????????? | | ??????#### # ##?### #????????? | | ????### ## ### #????????? | | ????# d%* #????????? | | ????# d ###????????? | | ????# @#??????????? | | [ #??????????? | | # #??????????? | | ?# #??????????? | | #???## # #??????????? | | ?????## # #??????????? | | ?????##%# #??????????? | | ?????# " #??????????? | | #????# #??????????? | | ##???# # #??????????? | | #???# # #??????????? | | ##### # #??????????? | | ! ###################??????????? | | ! #????????????????????????????? | | ### #####????????????????????????????? | | ??# #????????????????????????????????? | | ??# #????????????????????????????????? | | ??# #????????????????????????????????? | | ??# #????????????????????????????????? | | ??# #????????????????????????????????? | | ??# #????????????????????????????????? | | ??# #????????????????????????????????? | | ??# #????????????????????????????????? | | ??# #????????????????????????????????? | | ?## ####?????????????????????????????? | +----------------------------------------------------+ Best States ------------- Heat Dissipation 25 Energy Generation 5 Energy Capacity 100 Matter Stores 300 Matter Capacity 300 Sight Range 16 Terrain Scan Density 10 Evasion (%) 50 Targeting Accuracy 10 Item Schematics ----------------- None Robot Schematics ------------------ None Fabricated ------------ Nothing Repaired ---------- Nothing Studied --------- None Alien Tech Used ----------------- None Achievements -------------- None Challenges ------------ None Game ------ Seed OmegaFlightBeam Manual? 0 Play Time 00:11:26 Cumulative 75.4 hours Start 2026.01.02 @ 09:15:21 End 2026.01.02 @ 09:25:59 Sessions 1 Manual Loads 0 Difficulty Rogue Special Mode None Game No. 25 Rogue 25 Adventurer 0 Explorer 0 Win Type - Total 2 Types 1/0/1/0/0/0/0/0/0/0 Lore% 17 Gallery% 27 Achievement% 27 Wizard Run 0 Options --------- Layout 1 ASCII 0 Keyboard 0 Movement Mouse Keybinds 0 Fullscreen 1 Font 24/Smallcaps Map View 50x35 Zoom Use 0% Tactical HUD 1 Map Filters NONE Filters NONE Steam 1 RUN: 6207ee23-edfc-46e6-bbcc-0aeabf48bed8